Cogmind - Beta 15 @@@ ROGUE MODE // 2025.05.14 @ 00:12:47 Player: Skysub Result: Destroyed by CT-WZG(R) with Subdweller Machine Gun Performance ------------- Evolutions (0) 0 Regions Visited (3) 600 Robots Destroyed (32) 160 Value Destroyed (834) 834 Prototype IDs (0) 0 Alien Tech Used (0) 0 Bonus (0) 0 TOTAL SCORE: 1594 Bonus ------- None Cogmind --------- Core Integrity 0/250 Matter 259/300 Energy 185/250 System Corruption 0% Temperature Cool (0) Movement Rolling (115) Ox1 Location -10/Subcaves Parts ------- > --- POWER (1) -------- Ion Engine > --- PROPULSION (2) --- Compact Wheel > --- UTILITY (2) ------ Large Storage Unit Makeshift Light Armor Plating > --- WEAPON (2) ------- Assault Rifle > --- INVENTORY (15) --- Subdweller Power Source Aluminum Leg Subdweller Monowheel Improved Heat Sink Structural Scanner Subdweller Optics Subdweller Optics Improved Terrain Scanner Terrain Scan Processor Targeting Computer Subdweller Laser Grenade Launcher Signal Generator Peak State ------------ > --- POWER ------------ Light Ion Engine > --- PROPULSION ------- Aluminum Leg Subdweller Monowheel > --- UTILITY ---------- Large Storage Unit Makeshift Light Armor Plating > --- WEAPON ----------- Subdweller Laser Subdweller Laser > --- INVENTORY -------- Ion Engine Subdweller Power Source Aluminum Leg Compact Wheel Improved Heat Sink Structural Scanner Subdweller Optics Subdweller Optics Improved Terrain Scanner Terrain Scan Processor Targeting Computer Assault Rifle Grenade Launcher Signal Generator [Rating: 15] Favorites ----------- Power Light Nuclear Core Engine Light Ion Engine Power Core Light Nuclear Core Propulsion Light Treads Treads Light Treads Leg Aluminum Leg Wheel Compact Wheel Utility Large Storage Unit Device Structural Scanner Storage Large Storage Unit Protection Makeshift Light Armor Plating Weapon Assault Rifle Energy Gun Subdweller Laser Ballistic Gun Assault Rifle Launcher Grenade Launcher Special Weapon Mining Laser Build | -11 -10 -10 -10 ------- Run | Yrd Mat Min Sub Slots Evolved . | . . . . Power . | . . . . Propulsion . | . . . . Utility . | . . . . Weapon . | . . . . Parts Attached 28 | 7 4 8 9 Power 4 | 1 1 1 1 Engine 3 | 1 . 1 1 Core 1 | . 1 . . Reactor . | . . . . Propulsion 10 | 2 . 6 2 Treads 3 | 2 . 1 . Leg 2 | . . 2 . Wheel 5 | . . 3 2 Hover . | . . . . Flight . | . . . . Utility 5 | 2 2 . 1 Device 2 | 1 1 . . Storage 2 | 1 1 . . Processor . | . . . . Hackware . | . . . . Protection 1 | . . . 1 Artifact . | . . . . Weapon 9 | 2 1 1 5 Energy Gun 3 | . . . 3 Energy Cannon . | . . . . Ballistic Gun 4 | 2 1 1 . Ballistic Cannon . | . . . . Launcher 1 | . . . 1 Special Weapon 1 | . . . 1 Impact Weapon . | . . . . Slashing Weapon . | . . . . Piercing Weapon . | . . . . Special Melee Weapon . | . . . . Unidentified Prototypes . | . . . . Parts Lost 12 | . 1 5 6 Power 2 | . . 1 1 Propulsion 5 | . . 3 2 Utility . | . . . . Weapon 5 | . 1 1 3 Highest Loss Streak 4 | . 1 4 3 To Critical Strikes . | . . . . Average Backups 9 | 3 8 10 12 Power . | . . . 1 Propulsion 2 | 1 2 3 2 Utility 3 | . 1 3 5 Weapon 2 | . 3 2 2 Tool/Special . | . . . . Unused Backups 9 | . 2 . 7 Power 2 | . 1 . 1 Propulsion . | . . . . Utility 6 | . 1 . 5 Weapon 1 | . . . 1 Tool/Special . | . . . . Average Slot Usage (%) 99 | . 100 98 99 Engine 6 | . 1 8 13 Core 6 | . 12 5 . Treads 14 | . 28 10 . Leg 6 | . . 7 13 Wheel 6 | . . 8 13 Device 12 | . 14 14 10 Storage 14 | . 14 14 14 Protection 1 | . . . 3 Energy Gun 1 | . . . 5 Ballistic Gun 20 | . 28 27 4 Launcher 3 | . . . 10 Special Weapon 2 | . . . 7 Peak Build Rating 15 | 9 12 10 15 Average Rating 10 | 5 10 9 10 On Entrance 7 | . 9 10 9 Naked Turns . | . . . . Heaviest Build 37 | 15 30 29 37 Greatest Support 40 | 40 40 40 20 Greatest Overweight (x) 2 | . . 2 2 Average Overweight (x) . | . . . 1 Largest Inventory Capacity 15 | 8 15 15 15 Average Capacity 12 | 6 10 15 15 Most Carried 15 | 5 10 13 15 Average Carried 10 | 3 8 10 13 Final Capacity 15 | 8 15 15 15 Final Carried 13 | 5 9 13 13 Class Distribution -------------------- 53% | Mutant 46% | Scavenger-Mutant Dominant Class ---------------- Mutant | -10/Materials Scavenger-Mutant | -10/Mines Scavenger-Mutant | -10/Subcaves Resources | -11 -10 -10 -10 ----------- Run | Yrd Mat Min Sub Matter Collected 929 | 154 438 150 187 Remotely . | . . . . Salvage Created 1108 | 21 663 229 195 Parts 70 | 4 39 13 14 Haulers Intercepted 2 | . 2 . . Recyclers Shooed 2 | . 1 1 . Parts Field Recycled . | . . . . Retrieved Matter . | . . . . Parts Self-Destructed 3 | . . . 3 Prevented . | . . . . Kills | -11 -10 -10 -10 ------- Run | Yrd Mat Min Sub Combat Hostiles Destroyed 24 | . 13 5 6 Guns 20 | . 13 5 2 AOE 4 | . . . 4 Classes Destroyed 8 | 1 5 1 1 Builder 2 | . 2 . . Tunneler 2 | 1 1 . . Hauler 2 | . 2 . . Recycler 1 | . . 1 . Watcher 1 | . 1 . . Swarmer 5 | . 3 2 . Grunt 13 | . 10 3 . Subdweller 6 | . . . 6 Best Kill Streak 3 | 1 3 3 2 Combat Bots Only 3 | . 3 2 2 Max Kills in Single Turn 1 | 1 1 1 1 Gunslinging . | . . . . Exploded 1 | . . . 1 Melee . | . . . . Uniques/NPCs Destroyed . | . . . . Combat | -11 -10 -10 -10 -------- Run | Yrd Mat Min Sub Hostile Shots Fired 136 | . 64 37 35 Missed 29 | . 12 5 12 Hits 107 | . 52 32 23 Projectile 107 | . 52 32 23 Critical Strikes 1 | . . . 1 Damage Taken 1630 | . 621 406 603 Core 256 | . 167 33 56 Absorbed by Shields . | . . . . Core Remaining (%) 100 | 100 . . . Volleys Fired 115 | 1 57 20 37 Largest 2 | 2 2 2 2 Hottest 120 | 40 40 40 120 Shots Fired 208 | 2 114 40 52 Gun 192 | 2 114 40 36 Cannon . | . . . . Launcher 9 | . . . 9 Special 7 | . . . 7 Kinetic 162 | 2 114 40 6 Thermal 37 | . . . 37 Explosive 9 | . . . 9 Electromagnetic . | . . . . Robot Hit Streak 21 | 1 13 8 21 Robot Miss Streak 2 | . 2 2 1 Penetration Max . | . . . . Secondary Targets . | . . . . Shots Hit Robots 145 | 1 80 27 37 Core Hits 63 | 1 37 11 14 Critical Kills . | . . . . Critical Parts Destroyed . | . . . . Critical Strikes . | . . . . Melee Attacks . | . . . . Impact . | . . . . Slashing . | . . . . Piercing . | . . . . Sneak Attacks . | . . . . Combat Hostiles . | . . . . Follow-up Attacks . | . . . . Damage Inflicted 2359 | 11 985 290 1073 Guns 1845 | 11 969 290 575 Cannons . | . . . . Explosions 498 | . . . 498 Melee . | . . . . Ramming 16 | . 16 . . Kinetic 1330 | 11 969 290 60 Thermal 515 | . . . 515 Explosive 498 | . . . 498 Electromagnetic . | . . . . Impact . | . . . . Slashing . | . . . . Piercing . | . . . . Highest Corruption . | . . . . Average Corruption . | . . . . Corruption Purged . | . . . . Corruption Blocked . | . . . . Overload Shots . | . . . . Overflow Damage 11 | . . . 11 Projectiles . | . . . . Explosions 11 | . . . 11 Melee . | . . . . Knockbacks 1 | . 1 . . Impact 1 | . 1 . . Kinetic . | . . . . Secondary . | . . . . Self-Inflicted Damage 32 | . . . 32 Shots 1 | . . . 1 Rammed 6 | . 6 . . Targets Rammed 6 | . 6 . . Kicked . | . . . . Crushed . | . . . . Highest Temperature 99 | . 20 30 99 Average Temperature 16 | . 5 15 32 Received Heat Transfer 606 | . 309 201 96 Siege Activations . | . . . . Martial Activations . | . . . . Shielding Activations . | . . . . Robots Disrupted . | . . . . Combat Hostiles . | . . . . Robots Corrupted . | . . . . Combat Hostiles . | . . . . Parts Fried . | . . . . Impact Corruptions . | . . . . Robots Melted . | . . . . Combat Hostiles . | . . . . Parts Melted 1 | . . . 1 Heat Transferred 625 | . . . 625 Parts Sabotaged . | . . . . Parts Stolen . | . . . . Parts Stripped . | . . . . Power Chain Reactions . | . . . . Alert | -11 -10 -10 -10 ------- Run | Yrd Mat Min Sub Maximum Alert Level . | . . . . Low Security (%) 100 | 100 100 100 . Level 1 . | . . . . Level 2 . | . . . . Level 3 . | . . . . Level 4 . | . . . . Level 5 . | . . . . High Security . | . . . . Max Security . | . . . . Peak Influence 136 | 5 136 50 . Initial 46 | . . 46 . Average 17 | . 21 13 . Influence Increases 567 | 5 412 150 . Destroy 0b10 Robot/C 360 | . 260 100 . Destroy 0b10 Robot/NC 40 | 5 30 5 . Destroy Leader 86 | . 56 30 . Successful Hack 5 | . 5 . . Select Force Hacks 60 | . 60 . . Destroy Structure 1 | . 1 . . Lose Combat Pursuer 15 | . . 15 . Influence Decreases 567 | 5 292 270 . Entered New Map 74 | . . 74 . Time Decay 423 | 5 247 171 . Lost Part 35 | . 10 25 . Purge Threat 35 | . 35 . . Squads Dispatched 4 | . 4 . . Investigation 3 | . 3 . . Extermination . | . . . . Reinforcement 1 | . 1 . . Assault . | . . . . Garrison . | . . . . Intercept . | . . . . Searches Triggered . | . . . . Construction Impeded . | . . . . Haulers Reinforced . | . . . . Active Scanning Responses . | . . . . Cargo Convoy Interrupts . | . . . . Stealth | -11 -10 -10 -10 --------- Run | Yrd Mat Min Sub Distress Signals . | . . . . Communications Jammed . | . . . . Distress Signals . | . . . . Times Spotted 36 | . 22 7 7 Peak Tracking Total 3 | . 3 3 2 Tactical Retreats 1 | . . 1 . Traps | -11 -10 -10 -10 ------- Run | Yrd Mat Min Sub Traps Triggered 2 | . 1 . 1 Indirectly . | . . . . Trap Hack Attempts . | . . . . Triggered . | . . . . Disarmed . | . . . . Reprogrammed . | . . . . Reused . | . . . . Traps Extracted . | . . . . Installed . | . . . . Triggered . | . . . . Machines | -11 -10 -10 -10 ---------- Run | Yrd Mat Min Sub Machines Disabled . | . . . . Max in Single Turn . | . . . . Machines Repaired . | . . . . Machines Dismantled . | . . . . Machines Sabotaged . | . . . . Overloaded Fab Kills . | . . . . Hacking | -11 -10 -10 -10 --------- Run | Yrd Mat Min Sub Machines Accessed 8 | . 8 . . Terminals 6 | . 6 . . Fabricators . | . . . . Repair Stations . | . . . . Recycling Units 2 | . 2 . . Scanalyzers . | . . . . Garrison Access . | . . . . Total Hacks 27 | . 27 . . Successful 10 | . 10 . . Failed 17 | . 17 . . Catastrophic 2 | . 2 . . Database Lockouts . | . . . . Manual 21 | . 21 . . Terminals 21 | . 21 . . Fabricators . | . . . . Repair Stations . | . . . . Recycling Units 6 | . 6 . . Scanalyzers . | . . . . Garrison Access . | . . . . Terminal Hacks 2 | . 2 . . Branch Access Points 1 | . 1 . . Unreport Threat 1 | . 1 . . Fabricator Hacks . | . . . . Repair Station Hacks . | . . . . Recycling Unit Hacks 3 | . 3 . . Report Inventory 2 | . 2 . . Retrieve Components 1 | . 1 . . Scanalyzer . | . . . . Garrison Access Hacks . | . . . . Unauthorized Hacks 5 | . 5 . . Terminals 3 | . 3 . . Botnet 3 | . 3 . . Fabricators . | . . . . Repair Stations . | . . . . Recycling Units 2 | . 2 . . Tunnel 2 | . 2 . . Scanalyzers . | . . . . Garrison Access . | . . . . Data Cores Recovered . | . . . . Used . | . . . . Hacking Detections 6 | . 6 . . Full Trace Events . | . . . . Feedback Events . | . . . . Feedback Blocked . | . . . . Robot Schematics Acquired . | . . . . Robots Built . | . . . . Authchips . | . . . . Time . | . . . . Total Robot Build Rating . | . . . . Part Schematics Acquired . | . . . . Parts Built . | . . . . Authchips . | . . . . Time . | . . . . Total Part Build Rating . | . . . . Parts Repaired . | . . . . Time . | . . . . Parts Recycled . | . . . . Recycled Matter . | . . . . Retrieved Matter . | . . . . Retrieved Components 10 | . 10 . . Parts Scanalyzed . | . . . . Part Schematics Acquired . | . . . . Parts Damaged . | . . . . Bothacking | -11 -10 -10 -10 ------------ Run | Yrd Mat Min Sub Used RIF Installer . | . . . . Robots Hacked . | . . . . Non-combat . | . . . . Combat . | . . . . Robot Hacks Applied . | . . . . Relay Couplers Released . | . . . . Fabnet Peak Effective % . | . . . . Robots Rewired . | . . . . Allies Hacked . | . . . . Hacks Repelled . | . . . . Allies | -11 -10 -10 -10 -------- Run | Yrd Mat Min Sub Total Allies . | . . . . Largest Group . | . . . . Highest-Rated Group . | . . . . Highest-Rated Ally . | . . . . Total Orders . | . . . . Ally Attacks . | . . . . Total Damage . | . . . . Kills . | . . . . Allies Corrupted . | . . . . Allies Melted . | . . . . Intel | -11 -10 -10 -10 ------- Run | Yrd Mat Min Sub Active Infowar (turns) 2535 | 36 1203 672 624 Terrain 748 | 36 712 . . Structural 1787 | . 491 672 624 Robot Analysis Total . | . . . . Derelict Logs Recovered 4 | . . 2 2 Drone Launches . | . . . . Drone Recoveries . | . . . . Exploration | -11 -10 -10 -10 ------------- Run | Yrd Mat Min Sub Turns Passed 2863 | 135 1203 672 853 Spaces Moved 1623 | 76 494 444 609 Core 5 | 5 . . . Treads 700 | 71 494 135 . Legs . | . . . . Wheels 918 | . . 309 609 Hover . | . . . . Flight . | . . . . Fastest Speed 50 | 50 160 90 115 Average Speed 134 | 152 160 128 116 Slowest Speed 240 | 160 160 240 130 Overloaded Moves . | . . . . Propulsion Burnouts . | . . . . Robots Hopped . | . . . . Potential Cave-ins . | . . . . Cave-ins Triggered . | . . . . Exploration Rate (%) 59 | 5 88 98 48 Regions Visited 3 Branch Regions 2 Pre-discovered Areas 4 | . 2 1 1 Known Exits Taken 1 | . 1 . . Unknown Exits Taken 2 | 1 . 1 . Scrap Searched 1 | . . 1 . Spaces Dug . | . . . . Terrain Destroyed 53 | . . . 53 Melee . | . . . . Projectile . | . . . . AOE 53 | . . . 53 Terrain Rammed . | . . . . Walls Destroyed . | . . . . Machines Disabled . | . . . . Actions | -11 -10 -10 -10 --------- Run | Yrd Mat Min Sub Total 2073 | 90 794 507 682 Wait 263 | 2 224 29 8 Move 1620 | 75 493 443 609 Hop . | . . . . Pick Up 27 | 5 7 7 8 Fast Attach 9 | 7 . 2 . Attach 8 | . 1 3 4 Detach . | . . . . Swap 17 | . 3 3 11 Drop 8 | . 3 . 5 Fire 115 | 1 57 20 37 Melee . | . . . . Ram . | . . . . Kick . | . . . . Crush 6 | . 6 . . Escape Stasis . | . . . . Rewire . | . . . . Trap . | . . . . Miscellaneous . | . . . . Route ------- -11/Scrapyard -10/Materials (discovered 3 exits: [*Mat x2] / *Min) -10/Mines (discovered 3 exits: [*Mat x2] / [*Sub]) -10/Subcaves (discovered 1 exit: [*Scr]) History --------- Turn | Location | Event 11 | -11/Scrapyard | Discovered new exit (range 15) 136 | -11/Scrapyard | Entered Materials 311 | -10/Materials | Build established: Mutant 426 | -10/Materials | Discovered new exit (range 7) 520 | -10/Materials | Discovered new exit (range 16) 978 | -10/Materials | Identified exit to Mines 1051 | -10/Materials | Discovered new exit (range 16) 1242 | -10/Materials | Core integrity fell below 50% 1339 | -10/Materials | Entered Mines 1357 | -10/Mines | Learned Materials non-interactive machine intel 1375 | -10/Mines | Found a hidden stash of uninstalled traps 1580 | -10/Mines | Discovered new exit (range 9) 1637 | -10/Mines | Lost 4 parts (1p2n1w) 1689 | -10/Mines | Discovered new exit (range 11) 1717 | -10/Mines | Met a Derelict testing a Signal Generator 1717 | -10/Mines | Discovered new exit (range 8) 1720 | -10/Mines | Learned location of Zion (-6) 1724 | -10/Mines | Found Signal Generator 1802 | -10/Mines | Build established: Scavenger-Mutant 2011 | -10/Mines | Entered Subcaves 2012 | -10/Subcaves | Approached by a straggling Scientist 2130 | -10/Subcaves | Shifting Twisted Machinery released Mak. Light Armor Plating 2130 | -10/Subcaves | Shifting Twisted Machinery released Flamer 2238 | -10/Subcaves | Scientist uncovered a shortcut to Scraptown 2298 | -10/Subcaves | Learned 4 Materials zone layouts 2400 | -10/Subcaves | A swath of the cavern ceiling suddenly collapsed 2589 | -10/Subcaves | Core integrity fell below 20% 2864 | -10/Subcaves | Destroyed by CT-WZG(R) with Subdweller Machine Gun Last Messages --------------- F4-6ZA(u) deconstructs Twisted Machinery. 65-BGZ(u) builds Twisted Machinery. F4-6ZA(u) deconstructs Twisted Machinery. 65-BGZ(u) builds Twisted Machinery. F4-6ZA(u) deconstructs Twisted Machinery. 7X-GT3(R): "SUBSUB!" Sub. Monowheel shoots sparks and powers down. CT-WZG(R): "WEHOME!" Lgt. Ion Engine destroyed. 7X-GT3(R) destroyed. Acquired 45 matter. CT-WZG(R) affixes Scrap Shield Fragment to Scrap Shield. Sub. Laser shoots sparks and powers down. Aluminum Leg destroyed. CT-WZG(R) affixes Scrap Shield Fragment to Scrap Shield. Sub. Laser destroyed. CT-WZG(R) affixes Scrap Shield Fragment to Scrap Shield. Map ----- +----------------------------------------------------+ | | | | | | | | | ?????????????????????????????????????????????????? | | ?????????????????????????????????????????????????? | | ?????????????????????????????????????????????????? | | ?????????????????????????????????????????????????? | | ?????????????????????????????????????????????????? | | ?????????????????????????????????????????????????? | | ?????????????????????????????????????????????????? | | ?????????????????????????????????????????????????? | | ?????????????????????????????????????????????????? | | ?????????????????????????????????????????????????? | | ??????????????????????#######????????????????????? | | ????????????????????#########????????????????????? | | ????????????????????### $$$##????????????????????? | | ????????????????????## & "##?????????########????? | | ????????????????????## #####????????#########????? | | ???????????????????###" ####??????### ##????? | | ????????????????#"###### ######?????## ##????? | | ????????????"""" # ## # < ###?????## ###???? | | ????????????"#"=% ##?????### #####?? | | ????????????### ##?????#### #####? | | ?????????????###### #####& ##?????###### ###? | | ?????????????############@! ##??########## ### | | ?????????????????###?###R ###?##### #### #### | | ?????????????????????## ######## ### #### | | ???????????????????#### ####### ## #### | | ??????????????????##### ##### ###### | | ??????????????????### ###### # " | | ??????????????????## # | | ??????????????????## # | | ?????????????????### ###### # | | ?????????????????## ## ########## | | ????????????????### ### ## ##??###### | | ????????????????## ### ###???#### | | ??????????????? ## ?## ###??###" | | ????????????? ### ?## ## ##??"#"" " | | ?????????????## ##### ?## #### ### ??"""""" | | ?????????????### ##### ############ """### | | ?????????????### ????### ############# #### "#### | | ??????????????###????####???????????########""#### | | ?????????????????????????????????????####### ???## | | ????????????????????????????????????????????????## | | ?????????????????????????????????????????????????? | | ???????????????????????????????????????????? "# | | ???????????????????????????????????????????? "" | | ???????????????????????????????????????????? "" | | ????????????????????????????????????????????? "" | +----------------------------------------------------+ Best States ------------- Heat Dissipation 25 Energy Generation 14 Energy Capacity 250 Matter Stores 300 Matter Capacity 300 Sight Range 16 Terrain Scan Range 16 Terrain Scan Density 10 Armor Coverage 100 Evasion (%) 40 Recoil Reduction 2 Item Schematics ----------------- None Robot Schematics ------------------ None Fabricated ------------ Nothing Repaired ---------- Nothing Alien Tech Used ----------------- None Achievements -------------- None Challenges ------------ None Game ------ Seed CentriumLinkedRouter Manual? 0 Play Time 00:16:54 Cumulative 82.3 hours Start 2025.05.13 @ 23:56:18 End 2025.05.14 @ 00:12:47 Sessions 1 Manual Loads 0 Difficulty Rogue Special Mode None Game No. 80 Rogue 80 Adventurer 0 Explorer 0 Win Type - Total 1 Types 1/0/0/0/0/0/0/0/0/0 Lore% 46 Gallery% 49 Achievement% 44 Wizard Run 0 Options --------- Layout 1 ASCII 0 Keyboard 1 Movement Numpad Keybinds 0 Fullscreen 1 Font 32/SmallcapsGlow Map View 50x35 Zoom Use 0% Tactical HUD 0 Map Filters NONE Filters NONE Steam 1 RUN: e965ac65-694a-4cba-9657-a4a177808966